bitfinex/quotes_ETHUSD_20241106
["timestamp","ask_amount","ask_price","bid_price","bid_amount"]
[1730888162624,0.382253,2616.0,2615.4,3.82342]
[1730888162880,0.382253,2616.0,2615.5,3.82324]
[1730888163083,0.382253,2616.0,2615.4,3.82342]
[1730888163084,0.382253,2616.0,2615.6,3.82319]
[1730888163278,0.85611971,2616.2,2615.5,3.82335]
[1730888163481,0.85611971,2616.2,2615.8,3.82283]
[1730888163801,0.85611971,2616.2,2615.7,0.7694]
[1730888163982,0.85611971,2616.2,2615.8,3.82283]
[1730888164295,0.85611971,2616.2,2615.7,4.59237]
[1730888164514,0.46783197,2616.1,2615.7,0.7694]
[1730888165255,0.46783197,2616.1,2615.3,3.82359]
[1730888165256,3.82272,2616.0,2615.4,0.8148]
[1730888165495,3.82272,2616.0,2615.4,4.63828]
[1730888165999,3.82272,2616.0,2615.4,0.8148]
[1730888166157,3.82272,2616.0,2615.4,4.6382]
[1730888166358,0.4290552,2615.9,2615.4,4.6382]
[1730888167178,0.4290552,2615.9,2615.4,0.8148]
[1730888167668,0.4290552,2615.9,2615.5,3.82335]
[1730888167994,3.822,2616.5,2615.8,7.64562]
[1730888168196,4.65433,2616.6,2614.9,3.01]
[1730888168197,4.65433,2616.6,2616.0,3.82257]
[1730888168703,4.65433,2616.6,2615.9,0.8006]
[1730888168862,8.47619,2616.6,2615.9,4.62329]
[1730888169061,4.65433,2616.6,2615.9,4.62329]
[1730888169274,0.465433,2616.5,2616.1,3.82235]
[1730888169474,3.82183,2616.6,2615.9,4.62328]
[1730888169804,3.82183,2616.6,2615.9,8.44596]
[1730888170097,7.64366,2616.6,2615.9,4.62328]
[1730888170500,3.82183,2616.6,2616.0,3.8226]
[1730888170980,7.64369,2616.6,2615.9,4.62328]
[1730888171188,0.764369,2616.5,2615.9,4.62328]
[1730888171385,0.764369,2616.5,2616.0,3.82253]
[1730888171697,3.8267,2616.9,2616.3,3.82209]
[1730888171698,0.8267,2616.9,2616.3,3.82209]
[1730888171898,3.82122,2617.0,2616.4,3.82204]
[1730888172203,3.82122,2617.0,2616.4,0.8141]
[1730888172364,4.59436,2617.2,2616.4,0.8141]
[1730888172554,4.59436,2617.2,2616.6,3.82166]
[1730888172913,3.82088,2617.2,2616.5,3.82175]
[1730888173200,3.82129,2617.0,2616.4,0.8141]
[1730888173805,4.203479,2616.9,2616.4,0.8141]
[1730888174131,0.382129,2616.9,2616.4,4.63603]
[1730888174469,0.382129,2616.9,2616.5,3.82189]
[1730888174805,3.82074,2617.3,2616.7,3.82156]
[1730888175112,3.82139,2616.9,2616.4,0.8141]
[1730888175475,7.64287,2616.9,2616.4,0.8141]
[1730888175782,3.82148,2616.8,2616.4,0.8141]
[1730888175982,3.82143,2616.9,2616.4,0.8141]
[1730888176190,0.382143,2616.8,2616.4,4.63611]
[1730888177110,3.82029,2617.6,2617.0,3.82108]
[1730888177274,3.82029,2617.6,2616.7,3.8215]
[1730888177275,3.82042,2617.6,2616.7,3.8215]
[1730888177477,3.82093,2617.2,2616.7,3.8215]
[1730888177791,0.382093,2617.2,2616.7,3.8215]
[1730888178313,0.382093,2617.2,2616.7,7.64303]
[1730888178519,3.82115,2617.1,2616.6,0.75]
[1730888178676,3.82118,2617.0,2616.6,0.75]
[1730888178877,3.82156,2616.8,2616.4,0.8138]
[1730888179191,0.382156,2616.7,2616.4,0.8138]
[1730888179820,7.64395,2616.5,2616.0,0.8329]
[1730888179978,3.82197,2616.5,2616.0,0.8329]
[1730888180173,3.82205,2616.4,2616.0,0.8329]
[1730888180374,3.82228,2616.3,2616.0,0.8329]
[1730888180574,0.799,2616.7,2616.0,0.8329]
[1730888180575,3.822,2616.5,2616.0,0.8329]
[1730888180811,0.3822,2616.4,2616.1,3.82241]
[1730888181014,4.62069,2616.7,2616.1,3.82241]
[1730888181178,4.62069,2616.7,2616.0,4.65543]
[1730888181179,0.799,2616.7,2616.0,4.65543]
[1730888181377,0.799,2616.7,2616.0,0.8329]
[1730888181669,3.0,2616.9,2616.1,3.82248]
[1730888181829,3.0,2616.9,2616.0,0.8329]
[1730888181830,3.8211,2617.1,2616.6,3.82173]
[1730888182112,3.8211,2617.1,2616.6,3.82174]
[1730888182322,3.8211,2617.1,2616.5,3.82189]
[1730888182484,3.8211,2617.1,2616.5,7.64371]
[1730888182814,0.382093,2617.2,2616.7,3.82153]
[1730888183319,0.382093,2617.2,2616.8,3.82132]
[1730888183518,4.202973,2617.2,2616.5,3.8218]
[1730888183727,0.4202973,2617.1,2616.5,3.8218]
[1730888184073,4.2413173,2617.1,2616.5,3.8218]
[1730888184718,0.4202973,2617.1,2616.6,3.82175]
[1730888184892,0.4202973,2617.1,2616.5,7.64362]
[1730888185092,0.4202973,2617.1,2616.7,3.82153]
[1730888185302,3.82074,2617.3,2616.7,3.82153]
[1730888185825,0.28327129,2617.2,2616.8,3.82145]
[1730888186032,0.28327129,2617.2,2616.7,3.82153]
[1730888186241,4.10431129,2617.1,2616.5,3.82179]
[1730888186392,4.10431129,2617.1,2616.4,0.8071]
[1730888186393,3.82118,2617.0,2616.4,4.6291]
[1730888186590,0.41044513,2616.9,2616.4,4.6291]
[1730888187303,0.41044513,2616.9,2616.4,0.8071]
[1730888187502,0.41044513,2616.9,2616.5,3.82182]
[1730888187709,0.28381835,2616.8,2616.5,3.82182]
[1730888188025,0.41044513,2616.9,2616.5,3.82182]
[1730888188229,0.41044513,2616.9,2616.4,0.8071]
[1730888188534,0.41044513,2616.9,2616.6,3.82174]
[1730888188828,0.28419236,2616.8,2616.1,0.778]
[1730888189034,4.10590236,2616.7,2616.1,0.778]
[1730888189203,0.28419236,2616.6,2616.1,4.60046]
[1730888189529,0.28419236,2616.5,2616.1,4.60046]
[1730888189831,0.28419236,2616.4,2616.1,0.778]
[1730888189997,0.28419236,2616.3,2616.1,0.778]
[1730888190197,0.28419236,2616.2,2616.1,0.778]
[1730888190731,0.28487417,2616.2,2616.1,0.778]
[1730888190918,0.28487417,2616.2,2616.1,4.60048]
[1730888191317,0.28487417,2616.2,2616.1,0.778]
[1730888191525,0.28487417,2616.2,2615.8,4.58602]
[1730888191721,0.28487417,2616.1,2616.0,4.58571]
[1730888191922,4.60077,2617.2,2616.5,4.58501]
[1730888191923,8.42176,2617.2,2616.5,4.58501]
[1730888192122,0.28518209,2617.1,2616.6,3.82173]
[1730888192323,0.28518209,2617.0,2616.6,3.82173]
[1730888192510,0.28518209,2616.9,2616.6,3.82173]
[1730888192710,0.28518209,2616.8,2616.6,3.82173]
[1730888192913,0.28518209,2616.7,2616.5,0.7632]
[1730888193109,0.28518209,2616.6,2616.5,0.7632]
[1730888193798,4.60076,2617.2,2616.5,4.58499]
[1730888194006,4.281176,2617.1,2616.5,0.7632]
[1730888194532,0.28522769,2617.0,2616.5,0.7632]
[1730888194835,0.28522769,2616.9,2616.5,0.7632]
[1730888195143,0.28522769,2616.8,2616.5,0.7632]
[1730888195294,0.28522769,2616.7,2616.5,0.7632]
[1730888195500,0.28522769,2616.6,2616.5,0.7632]
[1730888195821,0.28522769,2616.6,2616.1,3.82247]
[1730888196029,0.28522769,2616.5,2616.1,3.82247]
[1730888196232,0.28522769,2616.4,2616.1,3.82247]
[1730888196534,0.28522769,2616.3,2616.1,3.82247]
[1730888196835,0.28522769,2616.2,2616.1,3.82247]
[1730888198340,0.28522769,2616.2,2616.1,4.57697]
[1730888200471,0.28522769,2616.2,2616.1,0.7545]
[1730888201567,0.28522769,2616.2,2615.8,4.5796]
[1730888201725,0.28522769,2616.1,2615.8,0.7567]
[1730888201928,0.28522769,2616.0,2615.9,3.8227]
[1730888203058,0.28522769,2616.0,2615.9,4.662932]
[1730888204196,0.28522769,2616.0,2615.8,0.7567]
[1730888204325,0.28522769,2615.9,2615.7,3.82304]
[1730888204530,3.765,2617.0,2615.9,0.7934]
[1730888204750,0.765,2617.0,2616.4,3.82197]
[1730888205033,0.28586599,2616.9,2616.5,3.82181]
[1730888205226,0.28586599,2616.9,2616.7,3.8216]
[1730888205423,0.28586599,2616.9,2616.5,3.82189]
[1730888205972,0.28586599,2616.8,2616.1,4.61577]
[1730888206177,0.28586599,2616.7,2616.2,3.82233]
[1730888206327,0.28586599,2616.6,2616.2,3.82233]
[1730888206695,0.28586599,2616.6,2616.1,4.61577]
[1730888206696,0.28586599,2616.5,2616.1,0.7934]
[1730888206877,0.28586599,2616.4,2616.1,0.7934]
[1730888207031,0.28586599,2616.3,2616.1,0.7934]
[1730888207232,0.28586599,2616.2,2616.1,0.7934]
[1730888207550,0.28586599,2616.2,2616.1,5.459749]
[1730888208785,3.82146,2616.8,2616.1,5.459749]
[1730888208963,0.28595347,2616.7,2616.1,5.459749]
[1730888209169,0.28595347,2616.6,2616.2,3.82228]
[1730888209480,0.28595347,2616.5,2616.2,3.82228]
[1730888209683,0.28595347,2616.4,2616.3,3.82219]
[1730888209864,0.28595347,2616.4,2616.2,3.82228]
[1730888210067,0.28595347,2616.3,2616.2,3.82228]
[1730888210378,0.28595347,2616.3,2616.2,4.7504829]
[1730888211497,0.28595347,2616.3,2616.1,0.7934]
[1730888211730,0.28595347,2616.2,2616.0,3.82262]
[1730888211996,0.28595347,2616.1,2616.0,3.82262]
[1730888214258,0.28606199,2616.1,2616.0,3.82262]
[1730888214676,0.8186,2616.4,2616.0,3.82262]
[1730888214882,0.28605819,2616.3,2616.0,3.82262]
[1730888215092,0.28605819,2616.3,2615.9,4.60986]
[1730888215093,0.28605819,2616.2,2616.1,3.8224]
[1730888215819,0.807,2616.6,2616.1,3.8224]
[1730888216001,0.28607086,2616.2,2616.1,3.8224]
[1730888216377,0.807,2616.6,2616.2,3.82222]
[1730888216732,0.28607006,2616.5,2616.2,3.82222]
[1730888216892,0.28607006,2616.4,2616.2,3.82222]
[1730888217089,0.28607006,2616.3,2616.2,3.82222]
[1730888217479,0.28607006,2616.3,2616.2,4.586682]
[1730888217679,0.806,2616.8,2616.4,3.82193]
[1730888217919,0.28610581,2616.7,2616.3,4.64138]
[1730888218114,0.28610581,2616.6,2616.3,4.64138]
[1730888218293,0.28610581,2616.5,2616.3,4.64138]
[1730888218494,0.28610581,2616.4,2616.3,4.64138]
[1730888219423,0.28610581,2616.4,2616.3,5.48775]
[1730888220017,0.8005,2617.0,2616.6,3.82175]
[1730888220229,0.28612207,2616.9,2616.7,3.8216]
[1730888220387,0.28612207,2616.8,2616.7,3.8216]
[1730888220789,0.28612207,2616.8,2616.5,3.82187]
[1730888221020,0.28612207,2616.7,2616.6,3.82175]
[1730888221230,0.28612207,2616.7,2616.5,3.82182]
[1730888221431,4.62141,2617.2,2616.5,3.82182]
[1730888221591,1.13032688,2617.1,2616.5,3.82182]
[1730888221924,3.82148,2616.8,2616.3,0.8192]
[1730888222146,4.63998,2616.9,2616.2,3.82232]
[1730888222295,4.63998,2616.9,2616.1,4.63171]
[1730888222516,3.82147,2616.8,2616.1,4.63171]
[1730888222809,4.95387305,2616.7,2616.1,0.8093]
[1730888223023,0.28611805,2616.6,2616.1,4.63164]
[1730888223214,0.28611805,2616.5,2616.1,4.63164]
[1730888223440,0.28611805,2616.4,2616.3,3.82212]
[1730888223598,0.28611805,2616.4,2616.0,3.82252]
[1730888223798,0.28611805,2616.3,2616.0,3.82252]
[1730888224021,0.28611805,2616.2,2616.0,3.82252]
[1730888224206,3.82167,2616.7,2616.0,7.64505]
[1730888224638,0.28622886,2616.5,2616.2,3.82233]
[1730888224931,0.28622886,2616.4,2616.2,3.82233]
[1730888225139,0.28622886,2616.3,2616.2,3.82233]
[1730888225797,3.82147,2616.8,2616.2,3.82233]
[1730888226135,0.846139,2616.7,2616.2,3.82233]
[1730888226338,0.28623931,2616.3,2616.2,3.82233]
[1730888226631,0.28623931,2616.3,2616.1,3.82246]
[1730888226796,8.46135,2616.9,2616.2,3.82224]
[1730888226996,0.28625169,2616.8,2616.2,3.82224]
[1730888227200,0.28625169,2616.7,2616.2,3.82224]
[1730888227398,0.28625169,2616.6,2616.0,3.82262]
[1730888227624,0.28625169,2616.5,2616.0,3.82255]
[1730888227800,0.28625169,2616.4,2616.1,3.82238]
[1730888228124,0.28625169,2616.3,2616.1,3.82238]
[1730888228435,0.28625169,2616.2,2616.1,3.82238]
[1730888228930,0.87476017,2616.8,2616.2,3.82231]
[1730888229130,0.83771456,2616.7,2615.9,4.63147]
[1730888229339,0.83771456,2616.7,2616.1,3.82246]
[1730888229511,0.28624783,2616.6,2616.1,3.82246]
[1730888230298,0.8327,2616.4,2615.9,0.8088]
[1730888230538,4.10845783,2616.3,2615.6,3.82315]
[1730888231012,4.10845783,2616.3,2615.5,4.59156]
[1730888231013,0.28624783,2616.2,2615.7,3.82295]
[1730888231212,0.28624783,2616.2,2615.7,7.64593]
[1730888231431,0.28624783,2616.1,2615.9,3.82277]
[1730888231596,0.28624783,2616.1,2615.7,3.82295]
[1730888232239,1.680359,2616.4,2615.9,3.82277]
[1730888232240,0.28624783,2616.0,2615.9,3.82277]
[1730888232539,0.28624783,2616.0,2615.9,5.369936]
[1730888232834,0.8281,2616.7,2616.2,3.82226]
[1730888233033,0.28619495,2616.6,2616.2,3.82226]
[1730888233534,0.28619495,2616.5,2616.2,3.82226]
[1730888234099,3.82128,2617.0,2615.9,1.547166]
[1730888234100,0.796,2617.0,2616.3,0.765]
[1730888234403,0.796,2617.0,2615.8,0.8089]
[1730888234602,4.61724,2617.0,2616.2,3.82225]
[1730888234931,0.7988,2616.8,2616.2,3.82225]
[1730888235131,0.28619272,2616.5,2616.2,3.82225]
[1730888235297,0.28619272,2616.5,2616.0,3.82262]
[1730888235805,0.28613472,2616.4,2616.2,3.82232]
[1730888236397,0.28613472,2616.4,2615.9,3.82266]
[1730888236601,0.28613472,2616.4,2615.8,4.63173]
[1730888236602,0.7842,2616.3,2615.8,4.63173]
[1730888236796,0.7842,2616.3,2615.9,3.82275]
[1730888237446,0.28613472,2616.2,2615.9,3.82275]
[1730888237632,0.28613472,2616.1,2615.9,3.82269]
[1730888237947,0.7842,2616.3,2615.9,3.82269]
[1730888238167,0.7642,2616.7,2616.1,3.82241]
[1730888238940,0.2862058,2616.6,2616.1,3.82241]
[1730888239239,0.7522,2616.4,2615.9,3.82272]
[1730888239439,0.2862058,2616.3,2615.9,3.82272]
[1730888239643,0.2862058,2616.2,2616.0,3.82259]
[1730888239943,0.2862058,2616.1,2616.0,3.82259]
[1730888240436,0.2861986,2616.1,2616.0,3.82259]
[1730888240641,0.2861986,2616.1,2615.8,0.8089]
[1730888240824,0.2861986,2616.1,2616.0,3.82262]
[1730888241025,0.28618761,2616.1,2616.0,3.82262]
[1730888241229,0.28618602,2616.1,2616.0,3.82262]
[1730888241604,0.773,2616.7,2616.3,3.82215]
[1730888241800,0.28619344,2616.6,2616.1,3.82238]
[1730888242043,0.773,2616.7,2616.1,3.82238]
[1730888242044,0.28619344,2616.5,2616.2,3.82232]
[1730888242219,0.28619344,2616.4,2616.2,3.82232]
[1730888242421,0.28619344,2616.3,2616.2,3.82232]
[1730888242606,0.28619344,2616.3,2616.1,3.82238]
[1730888242810,0.28619344,2616.2,2616.1,3.82238]
[1730888244442,0.28619344,2616.2,2616.1,4.586878]
[1730888245433,0.773,2616.7,2616.1,4.586878]
[1730888245653,0.28617736,2616.6,2616.3,3.82211]
[1730888245962,0.28617736,2616.5,2616.3,3.82211]
[1730888246119,0.28617736,2616.4,2616.3,3.82211]
[1730888246522,0.57235409,2616.4,2616.3,3.82211]
[1730888246775,0.28617673,2616.4,2616.3,3.82211]
[1730888246937,0.28617673,2616.4,2616.1,3.82247]
[1730888247149,0.28617673,2616.3,2616.1,3.82247]
[1730888247326,0.773,2616.7,2616.2,3.82233]
[1730888247521,0.2861792,2616.6,2616.1,3.82247]
[1730888248125,0.2861792,2616.6,2615.6,3.0]
[1730888248126,0.8153,2616.4,2615.6,3.0]
[1730888248328,0.2861792,2616.3,2615.7,3.82294]
[1730888248526,0.2861792,2616.2,2616.0,3.82254]
[1730888248726,0.2861792,2616.1,2616.0,3.82254]
[1730888250969,0.2861792,2616.1,2615.6,0.8294]
[1730888251358,0.8153,2616.4,2615.6,0.8294]
[1730888251561,0.2862506,2616.0,2615.6,0.8294]
[1730888251878,0.2862506,2616.0,2615.3,0.8281]
[1730888251879,0.2862506,2615.9,2615.3,0.8281]
[1730888252067,0.2862506,2615.8,2615.3,0.8281]
[1730888252365,0.2862506,2615.7,2615.3,0.8281]
[1730888252579,0.7866,2616.0,2615.3,0.8281]
[1730888253089,0.28619793,2615.9,2615.3,0.8281]
[1730888253254,1.6158256,2617.2,2615.8,3.8101]
[1730888253456,0.28606283,2617.1,2615.9,0.8101]
[1730888253685,0.28606283,2617.0,2615.9,0.8101]
[1730888253844,0.28606283,2616.9,2615.9,0.8101]
[1730888254276,0.28606283,2616.8,2615.9,0.8101]
[1730888254585,0.28606283,2616.7,2616.1,0.8101]
[1730888254797,0.757,2617.2,2616.1,0.8101]
[1730888255088,0.28600391,2616.6,2616.2,0.07643737]
[1730888255244,0.28600391,2616.6,2616.3,0.8025]
[1730888255585,0.28600391,2616.6,2616.5,0.7533]
[1730888255958,0.8275,2617.5,2616.5,0.7533]
[1730888256288,1.29228,2617.5,2616.6,0.07642542]
[1730888256471,0.28589897,2617.4,2616.6,0.07642542]
[1730888256677,0.28589897,2617.3,2616.6,0.07642542]
[1730888256843,0.28589897,2617.2,2616.6,0.07642542]
[1730888257187,0.28589897,2617.1,2616.6,0.07642542]
[1730888257355,0.8275,2617.5,2616.5,0.7533]
[1730888257687,0.28564155,2617.4,2616.5,0.7533]
[1730888257884,0.28564155,2617.3,2616.5,0.7533]
[1730888258086,0.28564155,2617.2,2616.5,0.7533]
[1730888258252,3.82155,2616.8,2615.3,0.8208]
[1730888258448,3.82144,2616.9,2615.3,0.8208]
[1730888258449,0.7638,2616.6,2615.3,0.8208]
[1730888258680,0.7638,2616.6,2615.5,0.8108]
[1730888258844,0.7638,2616.6,2615.6,0.07644761]
[1730888259043,0.28561242,2616.5,2615.6,0.07644761]
[1730888259497,0.28561242,2616.4,2615.6,0.07644761]
[1730888259984,0.28561242,2616.4,2615.5,0.8108]
[1730888260195,0.7638,2616.6,2615.5,1.19288]
[1730888260492,0.28562031,2616.5,2615.6,0.07644762]
[1730888263171,0.28562131,2616.9,2616.0,0.7541]
[1730888263806,0.28562131,2616.8,2616.0,0.7541]
[1730888263975,0.28562131,2616.7,2616.0,0.7541]
[1730888264179,0.8068,2617.0,2616.0,0.7541]
[1730888264378,0.2855899,2616.9,2616.0,0.7541]
[1730888264594,0.2855899,2616.8,2616.0,0.7541]
[1730888264799,0.2855899,2616.7,2616.0,0.7541]
[1730888265065,0.2855899,2616.6,2616.0,0.7541]
[1730888265265,0.28560144,2616.5,2616.0,0.7541]
[1730888265479,4.31286299,2616.8,2616.0,0.7541]
[1730888265887,0.28561542,2616.7,2616.0,0.7541]
[1730888266082,0.8244,2616.6,2615.6,0.8241]
[1730888266613,0.28561542,2616.5,2615.6,0.8241]
[1730888266823,0.28561542,2616.4,2615.6,0.8241]
[1730888267111,0.28562836,2616.4,2615.6,0.8241]
[1730888267412,0.28562836,2616.3,2615.6,0.8241]
[1730888267582,3.82198,2616.5,2615.6,0.8241]
[1730888267782,0.75029776,2616.4,2615.6,0.8241]
[1730888268212,0.28565976,2616.3,2615.6,0.8241]
[1730888268415,0.28565976,2616.2,2615.6,0.8241]
[1730888268709,3.82207,2616.4,2615.6,0.8241]
[1730888268872,4.10785585,2616.3,2615.6,0.8241]
[1730888269073,0.69645144,2616.2,2615.6,0.8241]
[1730888269303,1.05566585,2616.1,2615.2,0.8029]
[1730888269471,4.87825384,2616.1,2615.2,0.8029]
[1730888269670,3.82278,2615.9,2615.2,0.8029]
[1730888269967,3.82269,2616.0,2615.2,0.8029]
[1730888270162,0.48783438,2615.9,2615.2,0.8029]
[1730888270413,0.28565384,2615.8,2615.2,0.87936981]
[1730888270705,0.77,2616.1,2615.2,0.87936981]
[1730888270913,0.28560075,2616.0,2615.2,0.8029]
[1730888271097,0.77,2616.1,2615.2,0.8029]
[1730888271283,0.2855646,2616.0,2615.2,0.8029]
[1730888271478,0.28556703,2615.9,2615.2,0.8029]
[1730888271707,3.82269,2616.0,2615.2,0.8029]
[1730888272005,4.10844147,2615.9,2615.2,0.8029]
[1730888272213,0.28559147,2615.8,2615.1,0.39896583]
[1730888272587,0.75,2615.7,2615.1,0.39896583]
[1730888272769,1.23585915,2615.7,2615.1,0.39896583]
[1730888272972,1.23585915,2615.7,2615.0,0.7758]
[1730888273210,0.28555407,2615.6,2615.0,0.7758]
[1730888273413,0.75,2615.7,2615.0,0.7758]
[1730888275408,0.8183,2615.9,2615.0,0.7758]
[1730888275660,0.74941336,2615.8,2615.0,0.7758]
[1730888275803,0.464101,2615.8,2615.0,0.7758]
[1730888276643,4.287101,2615.8,2615.0,0.7758]
[1730888277337,4.287061,2615.8,2615.0,0.7758]
[1730888277502,0.464101,2615.8,2615.0,0.7758]
[1730888277705,0.5105241,2615.7,2615.0,0.7758]
[1730888278114,0.5105241,2615.7,2615.1,0.07647663]
[1730888278304,0.5105241,2615.7,2615.0,0.7758]
[1730888278504,0.8183,2615.9,2615.0,0.7758]
[1730888278703,0.28520167,2615.8,2615.0,0.7758]
[1730888278939,4.64109,2615.9,2615.0,0.7758]
[1730888279240,0.28520168,2615.8,2615.0,0.7758]
[1730888279403,4.64109,2615.9,2615.0,0.7758]
[1730888279734,0.464109,2615.8,2615.0,3.7758]
[1730888279939,0.8183,2615.9,2615.0,0.7758]
[1730888280643,4.64111,2615.9,2615.0,0.7758]
[1730888281247,4.10808656,2615.8,2615.0,0.7758]
[1730888281404,3.82295,2615.8,2615.0,0.7758]
[1730888281745,0.8183,2615.9,2615.0,0.7758]
[1730888281974,0.8183,2615.9,2614.6,0.39914354]
[1730888281975,4.46247414,2615.1,2614.6,0.39914354]
[1730888282109,4.46247414,2615.1,2612.1,0.59840028]
[1730888282110,5.2586683,2615.0,2614.0,0.7537]
[1730888282458,1.4345383,2615.0,2614.0,0.7537]
[1730888282601,3.82481,2614.6,2613.7,0.8102]
[1730888283204,4.63258,2614.4,2613.7,0.8102]
[1730888283748,3.82514,2614.3,2613.7,0.8102]
[1730888284548,0.8076,2614.4,2613.7,0.8102]
[1730888284905,4.63267,2614.4,2613.7,0.8102]
[1730888285802,0.7775,2614.8,2613.8,0.07651763]
[1730888286033,0.7775,2614.8,2613.9,0.8274]
[1730888286741,4.60189,2614.8,2613.9,0.8274]
[1730888287359,0.7775,2614.8,2613.9,0.8274]
[1730888287705,0.36731383,2614.9,2613.9,0.8274]
[1730888287906,3.82403,2615.1,2613.9,0.8274]
[1730888288318,0.28405522,2615.0,2614.1,0.8228]
[1730888288564,3.82361,2615.4,2614.3,0.8228]
[1730888288758,0.7986,2615.9,2614.6,3.0]
[1730888289044,0.7986,2615.9,2614.8,3.8228]
[1730888289249,3.82312,2615.7,2614.8,0.8228]
[1730888289438,3.82336,2615.5,2614.8,0.8228]
[1730888289609,0.382336,2615.4,2614.8,0.8228]
[1730888291015,3.82366,2615.3,2614.8,0.8228]
[1730888291647,3.82432,2614.9,2614.1,0.7706]
[1730888292023,4.61522,2614.9,2614.1,0.7706]
[1730888293251,3.8241,2615.0,2614.1,0.7706]
[1730888293450,0.845835,2614.9,2614.1,0.7706]
[1730888294553,3.82372,2615.3,2614.1,0.7706]
[1730888294717,3.8238,2615.2,2614.1,0.7706]
[1730888295119,0.28438867,2615.1,2614.1,0.7706]
[1730888295509,3.8238,2615.2,2614.1,0.7706]
[1730888295765,4.108447,2615.1,2614.1,0.7706]
[1730888296073,0.6953517,2615.0,2614.1,0.7706]
[1730888296220,0.4108447,2615.0,2614.1,0.7706]
[1730888296638,7.64748,2615.3,2614.1,0.7706]
[1730888296920,4.10847043,2615.2,2614.1,0.7706]
[1730888297141,0.28460043,2615.1,2614.1,0.7706]
[1730888297453,3.82372,2615.3,2614.1,0.7706]
[1730888297454,0.28460043,2615.0,2614.1,0.7706]
[1730888297654,4.10840043,2615.2,2614.1,0.7706]
[1730888297856,3.82424,2614.9,2614.1,0.7706]
[1730888298278,3.82439,2614.8,2614.1,0.7706]
[1730888298577,3.82468,2614.6,2614.1,0.7706]
[1730888299076,3.82462,2614.7,2614.1,0.7706]
[1730888299229,4.10956066,2614.6,2614.1,0.7706]
[1730888301589,0.76493,2614.5,2614.1,0.7706]
[1730888302270,3.82462,2614.7,2614.1,0.7706]
[1730888302466,0.28502123,2614.6,2614.1,0.7706]
[1730888302670,0.28502123,2614.5,2614.1,0.7706]
[1730888302879,3.82462,2614.7,2614.1,0.7706]
[1730888303060,0.28501417,2614.6,2614.1,0.7706]
[1730888303260,0.28501417,2614.5,2614.1,0.7706]
[1730888304349,3.82498,2614.4,2614.1,0.7706]
[1730888304565,3.82498,2614.4,2613.3,0.39925929]
[1730888304566,3.82498,2614.4,2613.4,0.8278]
[1730888304785,0.41096342,2614.6,2613.4,0.8278]
[1730888305096,7.64981,2614.5,2613.5,0.8236]
[1730888305289,3.8249,2614.5,2613.5,0.8236]
[1730888305497,0.55,2614.6,2613.5,0.8236]
[1730888305704,3.82562,2614.0,2613.5,0.8236]
[1730888306007,4.590919,2613.9,2613.5,0.8236]
[1730888306290,4.590899,2613.9,2613.5,0.8236]
[1730888306503,0.765109,2613.9,2613.5,0.8236]
[1730888306856,3.82542,2614.1,2613.5,0.8236]
[1730888307258,3.82579,2613.9,2613.5,0.8236]
[1730888307678,0.28521803,2613.8,2613.5,0.8236]
[1730888307881,0.28521803,2613.7,2613.5,0.8236]
[1730888308460,3.82593,2613.8,2613.5,0.8236]
[1730888308660,4.591252,2613.7,2613.2,0.8328]
[1730888308855,0.765172,2613.7,2613.2,0.8328]
[1730888309086,0.28534694,2613.6,2613.2,0.8328]
[1730888309499,0.28534694,2613.5,2613.2,0.8328]
[1730888309659,0.28534694,2613.4,2613.2,0.8328]
[1730888309862,8.417262,2613.7,2613.2,0.8328]
[1730888310062,1.12709088,2613.6,2613.2,0.8328]
[1730888310267,0.28536468,2613.5,2613.2,0.8328]
[1730888310603,0.8324,2614.5,2613.4,0.7592]
[1730888310765,3.82532,2614.2,2613.4,0.7592]
[1730888310967,0.28523157,2614.1,2613.4,0.7592]
[1730888311163,0.28523157,2614.0,2613.4,0.7592]
[1730888311395,0.28523157,2613.9,2613.4,0.7592]
[1730888311696,0.69631873,2613.9,2613.4,0.7592]
[1730888312006,0.28523157,2613.8,2613.4,0.7592]
[1730888312505,3.82535,2614.2,2613.4,0.7592]
[1730888312663,0.28530232,2614.1,2613.4,0.7592]
[1730888312865,0.28530232,2614.0,2613.4,0.7592]
[1730888313064,0.28530232,2613.9,2613.4,0.7592]
[1730888313271,7.65064,2614.2,2613.4,0.7592]
[1730888313568,1.05034862,2614.1,2613.4,0.7592]
[1730888313910,0.28528462,2614.0,2613.4,0.7592]
[1730888314081,0.28528462,2613.9,2613.4,0.7592]
[1730888314287,0.28528462,2613.8,2613.4,0.7592]
[1730888314597,0.28528462,2613.7,2613.4,0.7592]
[1730888314774,3.82556,2614.0,2613.4,0.7592]
[1730888314978,0.28528378,2613.9,2613.4,0.7592]
[1730888315310,0.28528378,2613.8,2613.4,0.7592]
[1730888315665,7.65075,2614.2,2613.4,0.7592]
[1730888315865,0.28524071,2614.1,2613.4,0.7592]
[1730888316302,0.28524071,2614.0,2613.4,0.7592]
[1730888316495,0.28524071,2613.9,2613.4,0.7592]
[1730888316696,0.28524071,2613.8,2613.4,0.7592]
[1730888316915,3.82544,2614.1,2613.4,0.7592]
[1730888317090,1.05028627,2614.0,2613.4,0.7592]
[1730888317290,0.28520527,2613.9,2613.4,0.7592]
[1730888317502,0.28520527,2613.8,2613.4,0.7592]
[1730888317693,0.28520527,2613.7,2613.4,0.7592]
[1730888318008,4.590731,2614.0,2613.4,0.7592]
[1730888318307,0.5359531,2613.9,2613.4,0.7592]
[1730888318467,0.28520657,2613.8,2613.4,0.7592]
[1730888318671,3.82585,2613.8,2613.4,0.7592]
[1730888318866,0.28518683,2613.7,2613.4,0.7592]
[1730888319185,3.82585,2613.8,2613.4,0.7592]
[1730888319395,0.72151043,2613.7,2613.4,0.7592]
[1730888319600,0.28533012,2613.6,2613.4,0.7592]
[1730888319906,0.5359531,2613.9,2613.4,0.7592]
[1730888320116,0.28531058,2613.8,2613.4,0.7592]